[Event "Paracin Open 2022"]
[Site "Paracin"]
[Date "2022.07.15"]
[Round "8.2"]
[White "Ohanyan, Emin"]
[Black "Predke, Alexandr"]
[Result "0-1"]
[ECO "D44"]
[WhiteElo "2354"]
[BlackElo "2688"]
[Annotator "ChessBase"]
[PlyCount "82"]
[EventDate "2022.07.08"]
[EventCountry "SRB"]
[SourceTitle "playchess.com"]
[Source "ChessBase"]
[SourceQuality "1"]
[TimeControl "5400+30"]

1. d4 {[%emt 0:01:23]} Nf6 {[%emt 0:02:03]} 2. c4 {[%emt 0:00:05]} e6 {[%emt 0:00:04]} 3. Nf3 {[%emt 0:00:03]} d5 {[%emt 0:00:04]} 4. Nc3 {[%emt 0:00:04]} c6 {[%emt 0:00:04]} 5. Bg5 {[%emt 0:00:17]} dxc4 {[%emt 0:00:14]} 6. e4 {[%emt 0:00:26]} b5 {[%emt 0:00:17]} 7. e5 {[%emt 0:00:05]} h6 {[%emt 0:00:04]} 8. Bh4 {[%emt 0:00:03]} g5 {[%emt 0:00:03]} 9. Nxg5 {[%emt 0:00:04]} hxg5 {[%emt 0:00:04]} 10. Bxg5 {[%emt 0:00:04]} Nbd7 {[%emt 0:00:04]} 11. g3 {[%emt 0:00:08]} Bb7 {[%emt 0:00:22]} 12. Bg2 {[%emt 0:00:09]} Qb6 {[%emt 0:00:04]} 13. exf6 {[%emt 0:00:09]} O-O-O {[%emt 0:00:05]} 14. O-O {[%emt 0:00:26]} c5 {[%emt 0:00:04]} 15. d5 {[%emt 0:00:31]} b4 {[%emt 0:00:18]} 16. Rb1 {[%emt 0:00:19]} Qa6 {[%emt 0:00:17]} 17. dxe6 {[%emt 0:00:34]} Bxg2 {[%emt 0:02:08]} 18. e7 {[%emt 0:00:45]} Bxf1 {[%emt 0:00:15]} 19. Kxf1 {[%emt 0:00:43]} Bxe7 {[%emt 0:01:54]} 20. fxe7 {[%emt 0:00:23]} Rdg8 {[%emt 0:00:04]} 21. Ne4 {[%emt 0:00:34]} Rxg5 {[%emt 0:00:07]} 22. Nxg5 {[%emt 0:00:41]} Re8 {[%emt 0:00:25]} 23. Qe2 {[%emt 0:56:52]} Qg6 {[%emt 0:00:45]} 24. Ne4 {[%emt 0:10:59]} Rxe7 {[%emt 0:00:39]} 25. Re1 {[%emt 0:00:09]} Kd8 {[%emt 0:00:04]} 26. Qxc4 {[%emt 0:01:21]} Qg4 {[%emt 0:00:17]} 27. Re3 {[%emt 0:07:41]} f5 {[%emt 0:05:34]} 28. f3 {[%emt 0:02:04]} Qh3+ {[%emt 0:10:57]} 29. Kg1 {[%emt 0:00:25]} Qh6 {[%emt 0:14:18]} 30. f4 {[%emt 0:04:04]} Qe6 {[%emt 0:04:19]} 31. Qb5 {[%emt 0:03:47]} fxe4 {[%emt 0:02:20]} 32. a3 {[%emt 0:00:17]} Qd5 {[%emt 0:04:01]} 33. Qe2 {[%emt 0:01:25]} Qd4 {[%emt 0:00:29]} 34. axb4 {[%emt 0:00:12]} cxb4 {[%emt 0:00:08]} 35. Kg2 {[%emt 0:00:13]} Nb6 {[%emt 0:02:16]} 36. Rb3 {[%emt 0:00:06]} Nd5 {[%emt 0:01:09]} 37. Qa6 {[%emt 0:00:04]} Qd2+ {[%emt 0:02:23]} 38. Kf1 {[%emt 0:00:15]} Qd1+ {[%emt 0:00:31]} 39. Kg2 {[%emt 0:00:04]} Qxb3 {[%emt 0:01:10]} 40. Qd6+ {[%emt 0:00:03]} Kc8 {[%emt 0:00:03]} 41. Qc6+ {[%emt 0:00:09]} Nc7 {[%emt 0:00:20]} 0-1

[Event "Paracin Open 2022"]
[Site "Paracin"]
[Date "2022.07.15"]
[Round "8.3"]
[White "Pranav Vijay"]
[Black "Nitish Belurkar"]
[Result "1-0"]
[ECO "C00"]
[WhiteElo "2265"]
[BlackElo "2460"]
[Annotator "ChessBase"]
[PlyCount "75"]
[EventDate "2022.07.08"]
[EventCountry "SRB"]
[SourceTitle "playchess.com"]
[Source "ChessBase"]
[SourceQuality "1"]
[TimeControl "5400+30"]

1. e4 {[%emt 0:00:06]} e6 {[%emt 0:00:29]} 2. d3 {[%emt 0:00:20]} d5 {[%emt 0:00:08]} 3. Nd2 {[%emt 0:00:07]} Nf6 {[%emt 0:00:20]} 4. Ngf3 {[%emt 0:00:09]} c5 {[%emt 0:00:34]} 5. g3 {[%emt 0:00:19]} Nc6 {[%emt 0:00:09]} 6. Bg2 {[%emt 0:00:10]} Be7 {[%emt 0:00:04]} 7. O-O {[%emt 0:00:16]} O-O {[%emt 0:00:05]} 8. Re1 {[%emt 0:00:09]} b5 {[%emt 0:00:48]} 9. e5 {[%emt 0:00:34]} Nd7 {[%emt 0:00:26]} 10. Nf1 {[%emt 0:00:09]} Qc7 {[%emt 0:01:10]} 11. Bf4 {[%emt 0:00:11]} a5 {[%emt 0:00:21]} 12. h4 {[%emt 0:00:36]} Bb7 {[%emt 0:04:12]} 13. h5 {[%emt 0:01:29]} Rfc8 {[%emt 0:02:58]} 14. N1h2 {[%emt 0:03:03]} b4 {[%emt 0:03:09]} 15. Ng4 {[%emt 0:02:17]} Qd8 {[%emt 0:00:33]} 16. Qd2 {[%emt 0:07:17]} Ba6 {[%emt 0:05:16]} 17. h6 {[%emt 0:04:58]} g6 {[%emt 0:00:09]} 18. Bg5 {[%emt 0:02:56]} a4 {[%emt 0:09:29]} 19. Bxe7 {[%emt 0:02:19]} Qxe7 {[%emt 0:00:13]} 20. c4 {[%emt 0:01:48]} bxc3 {[%emt 0:09:57]} 21. bxc3 {[%emt 0:00:27]} Rd8 {[%emt 0:02:26]} 22. Rab1 {[%emt 0:00:43]} a3 {[%emt 0:05:35]} 23. Bf1 {[%emt 0:01:45]} Rab8 {[%emt 0:09:11]} 24. Qf4 {[%emt 0:00:54]} Ra8 {[%emt 0:11:32]} 25. Rb3 {[%emt 0:06:45]} Bc8 {[%emt 0:04:06]} 26. Reb1 {[%emt 0:09:34]} Rf8 {[%emt 0:04:11]} 27. Rb7 {[%emt 0:01:51]} Bxb7 {[%emt 0:02:26]} 28. Rxb7 {[%emt 0:00:02]} Ra7 {[%emt 0:00:33]} 29. Rxd7 {[%emt 0:00:16]} Rxd7 {[%emt 0:01:32]} 30. Nf6+ {[%emt 0:00:10]} Kh8 {[%emt 0:00:03]} 31. Nxd7 {[%emt 0:00:06]} Rd8 {[%emt 0:06:00]} 32. Nxc5 {[%emt 0:00:09]} Kg8 {[%emt 0:18:25]} 33. Nb3 {[%emt 0:01:05]} Rf8 {[%emt 0:00:00]} 34. Qa4 {[%emt 0:00:25]} Nd8 {[%emt 0:00:00]} 35. d4 {[%emt 0:01:52]} f6 {[%emt 0:00:00]} 36. Nc5 {[%emt 0:00:35]} Nf7 {[%emt 0:00:00]} 37. Nd7 {[%emt 0:00:09]} fxe5 {[%emt 0:00:00]} 38. Nxf8 {[%emt 0:00:13]} 1-0

[Event "Paracin Open 2022"]
[Site "Paracin"]
[Date "2022.07.15"]
[Round "8.4"]
[White "Suleymenov, Alisher"]
[Black "Han, Yichen"]
[Result "1-0"]
[ECO "D45"]
[WhiteElo "2467"]
[BlackElo "2286"]
[Annotator "ChessBase"]
[PlyCount "101"]
[EventDate "2022.07.08"]
[EventCountry "SRB"]
[SourceTitle "playchess.com"]
[Source "ChessBase"]
[SourceQuality "1"]
[TimeControl "5400+30"]

1. d4 {[%emt 0:00:02]} d5 {[%emt 0:02:42]} 2. c4 {[%emt 0:00:06]} c6 {[%emt 0:00:21]} 3. Nf3 {[%emt 0:00:06]} Nf6 {[%emt 0:00:06]} 4. Nc3 {[%emt 0:00:04]} e6 {[%emt 0:00:16]} 5. e3 {[%emt 0:00:05]} Nbd7 {[%emt 0:00:12]} 6. Be2 {[%emt 0:00:06]} Bd6 {[%emt 0:00:19]} 7. O-O {[%emt 0:00:06]} O-O {[%emt 0:00:15]} 8. b3 {[%emt 0:00:03]} b6 {[%emt 0:00:32]} 9. Bb2 {[%emt 0:00:04]} Bb7 {[%emt 0:00:10]} 10. Bd3 {[%emt 0:00:03]} Re8 {[%emt 0:03:40]} 11. Re1 {[%emt 0:00:37]} h6 {[%emt 0:04:18]} 12. Rc1 {[%emt 0:10:12]} Rc8 {[%emt 0:07:16]} 13. Rc2 {[%emt 0:00:05]} Qe7 {[%emt 0:02:43]} 14. e4 {[%emt 0:00:57]} dxe4 {[%emt 0:06:25]} 15. Nxe4 {[%emt 0:00:19]} Nxe4 {[%emt 0:03:49]} 16. Bxe4 {[%emt 0:01:05]} Bb4 {[%emt 0:01:37]} 17. Re3 {[%emt 0:08:40]} Nf6 {[%emt 0:07:52]} 18. Bd3 {[%emt 0:00:07]} Ng4 {[%emt 0:02:44]} 19. Ree2 {[%emt 0:01:28]} Ba3 {[%emt 0:02:41]} 20. Bc3 {[%emt 0:08:03]} Bb4 {[%emt 0:01:07]} 21. Ba1 {[%emt 0:00:06]} Qf8 {[%emt 0:03:22]} 22. Qc1 {[%emt 0:06:02]} Nf6 {[%emt 0:04:16]} 23. Qf4 {[%emt 0:14:30]} c5 {[%emt 0:07:27]} 24. d5 {[%emt 0:08:03]} exd5 {[%emt 0:13:46]} 25. Bxf6 {[%emt 0:00:05]} dxc4 {[%emt 0:08:04]} 26. Rxc4 {[%emt 0:00:12]} Rxe2 {[%emt 0:01:11]} 27. Bxe2 {[%emt 0:01:58]} gxf6 {[%emt 0:00:30]} 28. Qg3+ {[%emt 0:23:27]} Kh8 {[%emt 0:00:26]} 29. Rh4 {[%emt 0:00:03]} Re8 {[%emt 0:04:21]} 30. Qf4 {[%emt 0:07:25]} Bxf3 {[%emt 0:09:06]} 31. Qxf3 {[%emt 0:00:59]} Bd2 {[%emt 0:01:13]} 32. g3 {[%emt 0:01:57]} Bg5 {[%emt 0:00:44]} 33. Ra4 {[%emt 0:00:43]} Qe7 {[%emt 0:00:32]} 34. Bd3 {[%emt 0:01:32]} Qd7 {[%emt 0:02:08]} 35. h4 {[%emt 0:01:21]} Rd8 {[%emt 0:01:11]} 36. hxg5 {[%emt 0:02:21]} fxg5 {[%emt 0:00:11]} 37. Qf6+ {[%emt 0:00:54]} Kg8 {[%emt 0:00:02]} 38. Bf1 {[%emt 0:02:25]} Qd5 {[%emt 0:01:09]} 39. Rxa7 {[%emt 0:01:11]} Rd6 {[%emt 0:00:11]} 40. Qe7 {[%emt 0:00:16]} Kg7 {[%emt 0:00:31]} 41. Qe1 {[%emt 0:01:12]} Rf6 {[%emt 0:00:29]} 42. Re7 {[%emt 0:00:12]} Qd4 {[%emt 0:00:30]} 43. Re4 {[%emt 0:00:15]} Qd6 {[%emt 0:00:35]} 44. Re3 {[%emt 0:00:24]} h5 {[%emt 0:00:42]} 45. Rd3 {[%emt 0:00:16]} Qc7 {[%emt 0:00:42]} 46. Rd5 {[%emt 0:00:17]} h4 {[%emt 0:00:19]} 47. Rxg5+ {[%emt 0:00:18]} Kf8 {[%emt 0:00:21]} 48. Qe5 {[%emt 0:00:17]} Qd8 {[%emt 0:00:10]} 49. Rh5 {[%emt 0:00:40]} Qd4 {[%emt 0:00:40]} 50. Qxd4 {[%emt 0:00:21]} cxd4 {[%emt 0:00:06]} 51. Rxh4 {[%emt 0:00:03]} 1-0

[Event "Paracin Open 2022"]
[Site "Paracin"]
[Date "2022.07.15"]
[Round "8.5"]
[White "Makhnev, Denis"]
[Black "Urazayev, Arystanbek"]
[Result "1/2-1/2"]
[ECO "D45"]
[WhiteElo "2492"]
[BlackElo "2430"]
[Annotator "ChessBase"]
[PlyCount "56"]
[EventDate "2022.07.08"]
[EventCountry "SRB"]
[SourceTitle "playchess.com"]
[Source "ChessBase"]
[SourceQuality "1"]
[TimeControl "5400+30"]

1. d4 {[%emt 0:00:02]} Nf6 {[%emt 0:01:41]} 2. Nf3 {[%emt 0:00:05]} e6 {[%emt 0:02:19]} 3. c4 {[%emt 0:00:07]} d5 {[%emt 0:00:28]} 4. Nc3 {[%emt 0:00:20]} c6 {[%emt 0:01:40]} 5. e3 {[%emt 0:05:14]} Nbd7 {[%emt 0:00:31]} 6. b3 {[%emt 0:06:23]} Bb4 {[%emt 0:00:59]} 7. Bd2 {[%emt 0:00:06]} O-O {[%emt 0:03:37]} 8. Bd3 {[%emt 0:02:53]} dxc4 {[%emt 0:15:40]} 9. bxc4 {[%emt 0:00:10]} e5 {[%emt 0:06:46]} 10. dxe5 {[%emt 0:07:34]} Ng4 {[%emt 0:01:15]} 11. Qb1 {[%emt 0:00:21]} Ndxe5 {[%emt 0:05:40]} 12. Nxe5 {[%emt 0:06:57]} Nxe5 {[%emt 0:01:06]} 13. Bxh7+ {[%emt 0:00:06]} Kh8 {[%emt 0:00:07]} 14. Qxb4 {[%emt 0:00:06]} Kxh7 {[%emt 0:00:44]} 15. O-O {[%emt 0:00:08]} Bf5 {[%emt 0:20:11]} 16. e4 {[%emt 0:01:55]} Qxd2 {[%emt 0:05:49]} 17. exf5 {[%emt 0:00:07]} Rfd8 {[%emt 0:02:47]} 18. Rab1 {[%emt 0:29:49]} a5 {[%emt 0:07:14]} 19. Qb3 {[%emt 0:00:37]} a4 {[%emt 0:02:04]} 20. Nxa4 {[%emt 0:01:53]} Rd3 {[%emt 0:00:55]} 21. Qb4 {[%emt 0:00:16]} Nf3+ {[%emt 0:10:34]} 22. gxf3 {[%emt 0:00:09]} Qg5+ {[%emt 0:00:09]} 23. Kh1 {[%emt 0:00:05]} Qf4 {[%emt 0:02:49]} 24. Rb3 {[%emt 0:11:10]} Qxf3+ {[%emt 0:01:22]} 25. Kg1 {[%emt 0:00:04]} Qg4+ {[%emt 0:03:46]} 26. Kh1 {[%emt 0:00:04]} Qf3+ {[%emt 0:00:19]} 27. Kg1 {[%emt 0:00:05]} Qg4+ {[%emt 0:00:04]} 28. Kh1 {[%emt 0:00:06]} Qf3+ {[%emt 0:00:04]} 1/2-1/2

[Event "Paracin Open 2022"]
[Site "Paracin"]
[Date "2022.07.15"]
[Round "8.6"]
[White "Makarian, Rudik"]
[Black "Djordjevic, Vuk"]
[Result "0-1"]
[ECO "E49"]
[WhiteElo "2533"]
[BlackElo "2382"]
[Annotator "ChessBase"]
[PlyCount "62"]
[EventDate "2022.07.08"]
[EventCountry "SRB"]
[SourceTitle "playchess.com"]
[Source "ChessBase"]
[SourceQuality "1"]
[TimeControl "5400+30"]

1. d4 {[%emt 0:00:02]} Nf6 {[%emt 0:05:55]} 2. c4 {[%emt 0:00:05]} e6 {[%emt 0:00:06]} 3. Nc3 {[%emt 0:00:21]} Bb4 {[%emt 0:01:38]} 4. e3 {[%emt 0:00:07]} O-O {[%emt 0:00:13]} 5. Bd3 {[%emt 0:00:06]} d5 {[%emt 0:04:51]} 6. a3 {[%emt 0:00:44]} Bxc3+ {[%emt 0:12:08]} 7. bxc3 {[%emt 0:00:03]} dxc4 {[%emt 0:00:25]} 8. Bxc4 {[%emt 0:00:06]} c5 {[%emt 0:00:31]} 9. Ne2 {[%emt 0:00:06]} b6 {[%emt 0:03:09]} 10. O-O {[%emt 0:04:41]} Qc7 {[%emt 0:07:48]} 11. Bd3 {[%emt 0:00:37]} Bb7 {[%emt 0:12:09]} 12. f3 {[%emt 0:03:02]} e5 {[%emt 0:05:15]} 13. e4 {[%emt 0:02:08]} cxd4 {[%emt 0:03:46]} 14. cxd4 {[%emt 0:00:07]} exd4 {[%emt 0:02:39]} 15. Nxd4 {[%emt 0:11:59]} Qc3 {[%emt 0:12:05]} 16. Nf5 {[%emt 0:04:11]} Rd8 {[%emt 0:10:13]} 17. Bg5 {[%emt 0:02:35]} Rxd3 {[%emt 0:03:03]} 18. Qe2 {[%emt 0:00:01]} Rd7 {[%emt 0:08:10]} 19. e5 {[%emt 0:09:27]} Nc6 {[%emt 0:03:15]} 20. Rfe1 {[%emt 0:09:16]} Nd4 {[%emt 0:01:45]} 21. Nxd4 {[%emt 0:00:02]} Qxd4+ {[%emt 0:00:08]} 22. Kh1 {[%emt 0:00:01]} Nd5 {[%emt 0:00:52]} 23. e6 {[%emt 0:00:25]} fxe6 {[%emt 0:00:36]} 24. Rad1 {[%emt 0:00:28]} Qc5 {[%emt 0:00:51]} 25. Qxe6+ {[%emt 0:00:06]} Rf7 {[%emt 0:00:03]} 26. Re5 {[%emt 0:00:11]} h6 {[%emt 0:00:50]} 27. Bh4 {[%emt 0:04:47]} Raf8 {[%emt 0:01:00]} 28. h3 {[%emt 0:00:52]} Nf4 {[%emt 0:00:31]} 29. Rxc5 {[%emt 0:02:54]} Nxe6 {[%emt 0:00:05]} 30. Re5 {[%emt 0:00:00]} Nf4 {[%emt 0:00:11]} 31. Bg3 {[%emt 0:00:44]} Nxg2 {[%emt 0:00:26]} 0-1

[Event "Paracin Open 2022"]
[Site "Paracin"]
[Date "2022.07.15"]
[Round "8.7"]
[White "Menezes, Christoph"]
[Black "Aditya Mittal"]
[Result "1-0"]
[ECO "D12"]
[WhiteElo "2417"]
[BlackElo "2480"]
[Annotator "ChessBase"]
[PlyCount "65"]
[EventDate "2022.07.08"]
[EventCountry "SRB"]
[SourceTitle "playchess.com"]
[Source "ChessBase"]
[SourceQuality "1"]
[TimeControl "5400+30"]

1. d4 {[%emt 0:00:05]} d5 {[%emt 0:00:05]} 2. c4 {[%emt 0:00:14]} c6 {[%emt 0:00:04]} 3. Nf3 {[%emt 0:00:19]} Nf6 {[%emt 0:00:03]} 4. e3 {[%emt 0:00:16]} Bf5 {[%emt 0:00:04]} 5. Nc3 {[%emt 0:00:19]} e6 {[%emt 0:00:05]} 6. Nh4 {[%emt 0:00:23]} Bg6 {[%emt 0:00:04]} 7. Qb3 {[%emt 0:01:28]} Qc7 {[%emt 0:00:08]} 8. Nxg6 {[%emt 0:00:49]} hxg6 {[%emt 0:00:02]} 9. Bd2 {[%emt 0:00:15]} Nbd7 {[%emt 0:01:08]} 10. cxd5 {[%emt 0:03:30]} exd5 {[%emt 0:00:54]} 11. O-O-O {[%emt 0:00:23]} b5 {[%emt 0:09:16]} 12. Qc2 {[%emt 0:07:37]} Bd6 {[%emt 0:11:38]} 13. Kb1 {[%emt 0:05:46]} Kf8 {[%emt 0:09:29]} 14. f3 {[%emt 0:08:16]} Nb6 {[%emt 0:20:48]} 15. Bd3 {[%emt 0:11:53]} Nc4 {[%emt 0:04:49]} 16. Bc1 {[%emt 0:02:01]} Bb4 {[%emt 0:04:01]} 17. Ne2 {[%emt 0:08:42]} Rxh2 {[%emt 0:03:12]} 18. Nf4 {[%emt 0:04:40]} Rxh1 {[%emt 0:03:52]} 19. Rxh1 {[%emt 0:00:05]} Kg8 {[%emt 0:16:13]} 20. g4 {[%emt 0:01:54]} Bd6 {[%emt 0:09:47]} 21. Qh2 {[%emt 0:02:02]} Nh5 {[%emt 0:00:15]} 22. Qh3 {[%emt 0:04:56]} Re8 {[%emt 0:03:03]} 23. gxh5 {[%emt 0:00:23]} g5 {[%emt 0:00:01]} 24. Ng2 {[%emt 0:01:38]} Re6 {[%emt 0:00:10]} 25. Qf5 {[%emt 0:01:48]} Qa5 {[%emt 0:00:16]} 26. Rd1 {[%emt 0:04:34]} Rh6 {[%emt 0:00:50]} 27. Qxg5 {[%emt 0:01:29]} Bf8 {[%emt 0:00:07]} 28. Nh4 {[%emt 0:01:22]} c5 {[%emt 0:00:09]} 29. Qxd5 {[%emt 0:03:46]} Nb6 {[%emt 0:00:05]} 30. Qg5 {[%emt 0:02:12]} c4 {[%emt 0:00:39]} 31. Nf5 {[%emt 0:00:48]} Re6 {[%emt 0:01:33]} 32. Nxg7 {[%emt 0:01:07]} Bxg7 {[%emt 0:00:22]} 33. Qd8+ {[%emt 0:00:07]} 1-0

[Event "Paracin Open 2022"]
[Site "Paracin"]
[Date "2022.07.15"]
[Round "8.8"]
[White "Amartuvshin, Ganzorig"]
[Black "Nogerbek, Kazybek"]
[Result "0-1"]
[ECO "D37"]
[WhiteElo "2409"]
[BlackElo "2437"]
[Annotator "ChessBase"]
[PlyCount "104"]
[EventDate "2022.07.08"]
[EventCountry "SRB"]
[SourceTitle "playchess.com"]
[Source "ChessBase"]
[SourceQuality "1"]
[TimeControl "5400+30"]

1. d4 {[%emt 0:00:02]} Nf6 {[%emt 0:00:13]} 2. c4 {[%emt 0:00:08]} e6 {[%emt 0:00:06]} 3. Nf3 {[%emt 0:00:09]} d5 {[%emt 0:00:10]} 4. Nc3 {[%emt 0:00:12]} Be7 {[%emt 0:00:09]} 5. Bf4 {[%emt 0:00:11]} O-O {[%emt 0:00:11]} 6. a3 {[%emt 0:00:15]} c5 {[%emt 0:02:02]} 7. dxc5 {[%emt 0:01:24]} Bxc5 {[%emt 0:01:12]} 8. e3 {[%emt 0:00:34]} Nc6 {[%emt 0:00:39]} 9. Qc2 {[%emt 0:01:28]} Qa5 {[%emt 0:01:34]} 10. Nd2 {[%emt 0:07:33]} Bb4 {[%emt 0:00:12]} 11. Rc1 {[%emt 0:09:53]} Bxc3 {[%emt 0:00:29]} 12. Qxc3 {[%emt 0:00:05]} Qxc3 {[%emt 0:00:08]} 13. Rxc3 {[%emt 0:00:04]} e5 {[%emt 0:00:10]} 14. Bg5 {[%emt 0:01:12]} d4 {[%emt 0:00:19]} 15. Rc1 {[%emt 0:01:10]} Be6 {[%emt 0:01:20]} 16. Bxf6 {[%emt 0:33:13]} gxf6 {[%emt 0:00:17]} 17. Nb3 {[%emt 0:02:31]} Rfd8 {[%emt 0:01:42]} 18. e4 {[%emt 0:04:45]} Rac8 {[%emt 0:04:15]} 19. Nc5 {[%emt 0:02:59]} Na5 {[%emt 0:00:51]} 20. Nxe6 {[%emt 0:07:35]} fxe6 {[%emt 0:00:46]} 21. Bd3 {[%emt 0:07:24]} b5 {[%emt 0:02:16]} 22. c5 {[%emt 0:00:07]} Nb3 {[%emt 0:00:07]} 23. Ke2 {[%emt 0:00:45]} a6 {[%emt 0:05:22]} 24. g4 {[%emt 0:01:15]} h5 {[%emt 0:02:38]} 25. Rcg1 {[%emt 0:00:58]} Kf7 {[%emt 0:01:20]} 26. gxh5 {[%emt 0:00:32]} Rh8 {[%emt 0:02:13]} 27. Rg3 {[%emt 0:00:31]} Rxh5 {[%emt 0:00:43]} 28. Rhg1 {[%emt 0:03:19]} Rg5 {[%emt 0:09:35]} 29. Rxg5 {[%emt 0:00:27]} fxg5 {[%emt 0:00:02]} 30. Rxg5 {[%emt 0:00:07]} Kf6 {[%emt 0:00:42]} 31. h4 {[%emt 0:01:40]} Nxc5 {[%emt 0:01:27]} 32. Rg4 {[%emt 0:04:46]} Rh8 {[%emt 0:02:17]} 33. b4 {[%emt 0:03:03]} Nd7 {[%emt 0:02:39]} 34. Kd2 {[%emt 0:01:03]} Nf8 {[%emt 0:01:54]} 35. a4 {[%emt 0:01:46]} bxa4 {[%emt 0:00:56]} 36. Bxa6 {[%emt 0:00:05]} Ng6 {[%emt 0:07:22]} 37. b5 {[%emt 0:00:31]} Nxh4 {[%emt 0:01:23]} 38. b6 {[%emt 0:03:07]} Nf3+ {[%emt 0:00:29]} 39. Ke2 {[%emt 0:00:23]} Ng5 {[%emt 0:00:06]} 40. b7 {[%emt 0:00:14]} Rb8 {[%emt 0:01:29]} 41. f3 {[%emt 0:00:44]} Nf7 {[%emt 0:00:47]} 42. Rg1 {[%emt 0:00:57]} Nd6 {[%emt 0:00:35]} 43. Ra1 {[%emt 0:01:12]} Nxb7 {[%emt 0:00:44]} 44. Rb1 {[%emt 0:00:35]} a3 {[%emt 0:00:05]} 45. Bxb7 {[%emt 0:00:40]} a2 {[%emt 0:00:05]} 46. Ra1 {[%emt 0:00:02]} Rxb7 {[%emt 0:00:04]} 47. Rxa2 {[%emt 0:00:05]} Kg5 {[%emt 0:00:08]} 48. Ra6 {[%emt 0:01:25]} Rb2+ {[%emt 0:00:05]} 49. Kd3 {[%emt 0:00:04]} Rb3+ {[%emt 0:00:07]} 50. Kc4 {[%emt 0:01:02]} Rc3+ {[%emt 0:00:04]} 51. Kb4 {[%emt 0:00:03]} Kf4 {[%emt 0:00:14]} 52. Rxe6 {[%emt 0:00:05]} Rxf3 {[%emt 0:00:05]} 0-1

[Event "Paracin Open 2022"]
[Site "Paracin"]
[Date "2022.07.15"]
[Round "8.9"]
[White "Srihari L R"]
[Black "Muthaiah AL"]
[Result "0-1"]
[ECO "D11"]
[WhiteElo "2431"]
[BlackElo "2401"]
[Annotator "ChessBase"]
[PlyCount "128"]
[EventDate "2022.07.08"]
[EventCountry "SRB"]
[SourceTitle "playchess.com"]
[Source "ChessBase"]
[SourceQuality "1"]
[TimeControl "5400+30"]

1. d4 {[%emt 0:00:21]} d5 {[%emt 1:31:00]} 2. c4 {[%emt 0:00:19]} c6 {[%emt 0:00:00]} 3. Nf3 {[%emt 0:02:36]} Nf6 {[%emt 0:00:00]} 4. g3 {[%emt 0:03:45]} Bf5 {[%emt 0:00:00]} 5. Nc3 {[%emt 0:00:34]} e6 {[%emt 0:00:00]} 6. Qb3 {[%emt 0:00:11]} Qb6 {[%emt 0:00:00]} 7. c5 {[%emt 0:00:15]} Qxb3 {[%emt 0:00:00]} 8. axb3 {[%emt 0:00:02]} Be7 {[%emt 0:00:00]} 9. Bg2 {[%emt 0:10:46]} h6 {[%emt 0:00:00]} 10. b4 {[%emt 0:05:07]} O-O {[%emt 0:00:00]} 11. O-O {[%emt 0:07:31]} a6 {[%emt 0:00:00]} 12. b5 {[%emt 0:10:03]} cxb5 {[%emt 0:00:00]} 13. Nxb5 {[%emt 0:00:13]} Nc6 {[%emt 0:00:00]} 14. Nc3 {[%emt 0:01:25]} g5 {[%emt 0:00:00]} 15. h4 {[%emt 0:18:01]} g4 {[%emt 0:00:00]} 16. Ne5 {[%emt 0:02:04]} Nxd4 {[%emt 0:00:00]} 17. Bxh6 {[%emt 0:00:08]} Rfc8 {[%emt 0:00:00]} 18. Bg5 {[%emt 0:18:51]} Nb3 {[%emt 0:00:00]} 19. Rad1 {[%emt 0:01:13]} Rc7 {[%emt 0:00:00]} 20. f3 {[%emt 0:05:38]} Bc2 {[%emt 0:00:00]} 21. Rde1 {[%emt 0:04:57]} gxf3 {[%emt 0:00:00]} 22. Rxf3 {[%emt 0:00:30]} Bxc5+ {[%emt 0:00:00]} 23. Kh2 {[%emt 0:01:45]} Nh7 {[%emt 0:00:00]} 24. Bf4 {[%emt 0:01:33]} Bd6 {[%emt 0:00:00]} 25. Ref1 {[%emt 0:01:08]} Nd2 {[%emt 0:00:00]} 26. Bxd2 {[%emt 0:00:14]} Bxe5 {[%emt 0:00:00]} 27. Bf4 {[%emt 0:00:53]} Bxf4 {[%emt 0:01:22]} 28. Rxf4 {[%emt 0:00:40]} Rd8 {[%emt 0:12:08]} 29. Rd4 {[%emt 0:01:09]} Rdd7 {[%emt 0:00:00]} 30. Rf2 {[%emt 0:01:47]} f5 {[%emt 0:00:00]} 31. g4 {[%emt 0:00:26]} Nf6 {[%emt 0:00:00]} 32. gxf5 {[%emt 0:00:01]} Bxf5 {[%emt 0:00:00]} 33. Bh3 {[%emt 0:01:32]} Bxh3 {[%emt 0:00:00]} 34. Kxh3 {[%emt 0:01:12]} Rf7 {[%emt 0:00:04]} 35. Rg2+ {[%emt 0:00:18]} Rg7 {[%emt 0:00:13]} 36. Rg5 {[%emt 0:00:37]} b5 {[%emt 0:01:18]} 37. Re5 {[%emt 0:00:33]} Kf7 {[%emt 0:00:21]} 38. e4 {[%emt 0:00:07]} Ng4 {[%emt 0:01:54]} 39. Rh5 {[%emt 0:00:44]} Nf2+ {[%emt 0:00:40]} 40. Kh2 {[%emt 0:00:01]} Rc4 {[%emt 0:00:18]} 41. Rxc4 {[%emt 0:00:27]} dxc4 {[%emt 0:00:01]} 42. Rc5 {[%emt 0:00:00]} Rg4 {[%emt 0:01:25]} 43. e5 {[%emt 0:01:33]} Nd3 {[%emt 0:00:33]} 44. Rc7+ {[%emt 0:00:01]} Kg6 {[%emt 0:00:12]} 45. Rc6 {[%emt 0:00:01]} Kf5 {[%emt 0:00:28]} 46. Rxa6 {[%emt 0:00:05]} Nxe5 {[%emt 0:00:30]} 47. Ra8 {[%emt 0:01:23]} Rxh4+ {[%emt 0:00:37]} 48. Kg3 {[%emt 0:00:01]} Rg4+ {[%emt 0:00:15]} 49. Kh3 {[%emt 0:00:05]} b4 {[%emt 0:00:36]} 50. Rf8+ {[%emt 0:00:02]} Kg5 {[%emt 0:00:11]} 51. Na4 {[%emt 0:01:56]} Re4 {[%emt 0:00:36]} 52. Kg2 {[%emt 0:01:01]} Re2+ {[%emt 0:00:38]} 53. Kf1 {[%emt 0:00:19]} Rc2 {[%emt 0:00:42]} 54. Ke1 {[%emt 0:00:42]} Nd3+ {[%emt 0:00:22]} 55. Kd1 {[%emt 0:00:06]} b3 {[%emt 0:00:19]} 56. Rc8 {[%emt 0:00:47]} Kf4 {[%emt 0:00:57]} 57. Rc6 {[%emt 0:00:15]} e5 {[%emt 0:00:10]} 58. Nb6 {[%emt 0:00:07]} Nxb2+ {[%emt 0:00:27]} 59. Ke1 {[%emt 0:00:01]} Nd3+ {[%emt 0:00:37]} 60. Kd1 {[%emt 0:00:01]} Rc1+ {[%emt 0:00:19]} 61. Kd2 {[%emt 0:00:01]} b2 {[%emt 0:00:21]} 62. Nd5+ {[%emt 0:00:29]} Kg5 {[%emt 0:00:13]} 63. Rb6 {[%emt 0:00:30]} b1=Q {[%emt 0:00:11]} 64. Rxb1 {[%emt 0:00:04]} Rxb1 {[%emt 0:00:09]} 0-1